[Event "Late-Titled-Tuesday-Blitz-March-26-2024"]
[Site "Chess.com"]
[Date "2024.03.26"]
[Round "4"]
[White "Andrey_Klymchuk"]
[Black "KingCrusher275"]
[Result "1-0"]
[WhiteElo "2692"]
[BlackElo "2481"]
[TimeControl "180+1"]
[EndTime "14:40:37 PDT"]
[Termination "Andrey_Klymchuk won on time"]

1. e4 {[%clk 0:03:00.9]} 1... e5 {[%clk 0:02:52.2]} 2. d4 {[%clk 0:02:59.6]}
2... exd4 {[%clk 0:02:51.1]} 3. Qxd4 {[%clk 0:03:00.5]} 3... Nc6 {[%clk
0:02:50.3]} 4. Qe3 {[%clk 0:03:00.7]} 4... Nf6 {[%clk 0:02:47.7]} 5. Nc3 {[%clk
0:03:00.6]} 5... Bb4 {[%clk 0:02:44.4]} 6. Bd2 {[%clk 0:03:00.9]} 6... O-O
{[%clk 0:02:43.7]} 7. O-O-O {[%clk 0:03:00.8]} 7... d6 {[%clk 0:02:41.7]} 8. Bc4
{[%clk 0:02:53.2]} 8... Re8 {[%clk 0:02:37.4]} 9. Nf3 {[%clk 0:02:48.7]} 9...
Bxc3 {[%clk 0:01:35.4]} 10. Bxc3 {[%clk 0:02:48.1]} 10... Nxe4 {[%clk
0:01:35.7]} 11. Qf4 {[%clk 0:02:46.7]} 11... Nxc3 {[%clk 0:01:15.6]} 12. Bxf7+
{[%clk 0:02:45.2]} 12... Kh8 {[%clk 0:01:15.4]} 13. bxc3 {[%clk 0:02:10]} 13...
Rf8 {[%clk 0:01:15]} 14. Rhe1 {[%clk 0:02:00.2]} 14... Bd7 {[%clk 0:01:07.6]}
15. Rd5 {[%clk 0:01:53.7]} 15... Be8 {[%clk 0:00:48.5]} 16. Ng5 {[%clk
0:01:13.5]} 16... Qd7 {[%clk 0:00:18.9]} 17. Qe4 {[%clk 0:00:53.4]} 17... g6
{[%clk 0:00:11.7]} 18. Be6 {[%clk 0:00:52]} 18... Qg7 {[%clk 0:00:10.4]} 19. Qe3
{[%clk 0:00:50.1]} 19... Ne5 {[%clk 0:00:10.2]} 20. f4 {[%clk 0:00:46.6]} 20...
Nc4 {[%clk 0:00:07.6]} 21. Qd4 {[%clk 0:00:45.2]} 21... Nb6 {[%clk 0:00:06.5]}
22. Qxg7+ {[%clk 0:00:44.1]} 22... Kxg7 {[%clk 0:00:07.4]} 23. Rd4 {[%clk
0:00:44.4]} 23... Bc6 {[%clk 0:00:07.9]} 24. g3 {[%clk 0:00:44]} 24... Rae8
{[%clk 0:00:07.4]} 25. Rdd1 {[%clk 0:00:43.2]} 25... h6 {[%clk 0:00:07.6]} 26.
Nh3 {[%clk 0:00:43]} 26... Bf3 {[%clk 0:00:07.3]} 27. Rd3 {[%clk 0:00:42.9]}
27... Bg2 {[%clk 0:00:06.3]} 28. Nf2 {[%clk 0:00:42.5]} 28... Re7 {[%clk
0:00:04]} 29. Rde3 {[%clk 0:00:42.3]} 29... Rfe8 {[%clk 0:00:04.7]} 30. Kd2
{[%clk 0:00:41.6]} 30... Nd5 {[%clk 0:00:03.6]} 31. Bxd5 {[%clk 0:00:39.3]}
31... Rxe3 {[%clk 0:00:03.6]} 32. Rxe3 {[%clk 0:00:39.3]} 32... Rxe3 {[%clk
0:00:03.3]} 33. Bxg2 {[%clk 0:00:39.5]} 33... Re8 {[%clk 0:00:02.8]} 34. Bxb7
{[%clk 0:00:39.1]} 34... Rb8 {[%clk 0:00:03.4]} 35. Bd5 {[%clk 0:00:38.8]} 35...
Rb5 {[%clk 0:00:03.2]} 36. Bb3 {[%clk 0:00:38]} 36... a5 {[%clk 0:00:01.7]} 37.
a4 {[%clk 0:00:36.8]} 1-0

[Event "Late-Titled-Tuesday-Blitz-March-26-2024"]
[Site "Chess.com"]
[Date "2024.03.26"]
[Round "4"]
[White "Anton_Demchenko"]
[Black "ilya2700"]
[Result "1-0"]
[WhiteElo "2948"]
[BlackElo "2343"]
[TimeControl "180+1"]
[EndTime "14:40:38 PDT"]
[Termination "Anton_Demchenko won on time"]

1. e4 {[%clk 0:02:51.1]} 1... c5 {[%clk 0:02:59.6]} 2. Nf3 {[%clk 0:02:51.1]}
2... e6 {[%clk 0:03:00]} 3. d4 {[%clk 0:02:51.7]} 3... cxd4 {[%clk 0:03:00.9]}
4. Nxd4 {[%clk 0:02:52.6]} 4... Nf6 {[%clk 0:03:01.2]} 5. Nc3 {[%clk 0:02:53.1]}
5... Nc6 {[%clk 0:03:01.6]} 6. a3 {[%clk 0:02:52.8]} 6... d5 {[%clk 0:02:57.4]}
7. Bb5 {[%clk 0:02:51.7]} 7... Bd7 {[%clk 0:02:56.6]} 8. exd5 {[%clk 0:02:52.3]}
8... exd5 {[%clk 0:02:55.6]} 9. O-O {[%clk 0:02:52.6]} 9... Be7 {[%clk
0:02:56.1]} 10. Re1 {[%clk 0:02:53]} 10... O-O {[%clk 0:02:56.1]} 11. Be3 {[%clk
0:02:53.7]} 11... Re8 {[%clk 0:02:50.1]} 12. h3 {[%clk 0:02:53.5]} 12... Qc7
{[%clk 0:02:45]} 13. Bf1 {[%clk 0:02:50.7]} 13... a6 {[%clk 0:02:44]} 14. Qd2
{[%clk 0:02:46.9]} 14... Ne4 {[%clk 0:02:12.8]} 15. Nxd5 {[%clk 0:02:40.7]}
15... Qe5 {[%clk 0:01:40.3]} 16. Nxc6 {[%clk 0:02:35.9]} 16... Bxc6 {[%clk
0:01:35]} 17. Nxe7+ {[%clk 0:02:36.4]} 17... Qxe7 {[%clk 0:01:26.1]} 18. Qb4
{[%clk 0:02:32.6]} 18... Qf6 {[%clk 0:01:00.2]} 19. f3 {[%clk 0:02:07.2]} 19...
Ng5 {[%clk 0:00:53.3]} 20. Qf4 {[%clk 0:02:06.8]} 20... Qxf4 {[%clk 0:00:27]}
21. Bxf4 {[%clk 0:02:07.7]} 21... Ne6 {[%clk 0:00:27.7]} 22. Be3 {[%clk
0:02:08]} 22... Rad8 {[%clk 0:00:25.9]} 23. Rad1 {[%clk 0:02:04.9]} 23... Rxd1
{[%clk 0:00:24.8]} 24. Rxd1 {[%clk 0:02:05.8]} 24... Rd8 {[%clk 0:00:25.7]} 25.
Rxd8+ {[%clk 0:02:05]} 25... Nxd8 {[%clk 0:00:26.6]} 26. Kf2 {[%clk 0:02:05.5]}
26... Ne6 {[%clk 0:00:25.5]} 27. c4 {[%clk 0:02:06.1]} 27... Kf8 {[%clk
0:00:22]} 28. b4 {[%clk 0:02:06.6]} 28... Ke7 {[%clk 0:00:16]} 29. Bd3 {[%clk
0:02:06.1]} 29... g6 {[%clk 0:00:12.6]} 30. Ke2 {[%clk 0:01:53.5]} 30... f5
{[%clk 0:00:11.3]} 31. Kd2 {[%clk 0:01:53.8]} 31... Kd6 {[%clk 0:00:10.8]} 32.
Kc3 {[%clk 0:01:53.7]} 32... Ba4 {[%clk 0:00:06]} 33. f4 {[%clk 0:01:50.4]}
33... Bc6 {[%clk 0:00:05.2]} 34. g3 {[%clk 0:01:51]} 34... Bg2 {[%clk
0:00:05.3]} 35. h4 {[%clk 0:01:51.7]} 35... Bf3 {[%clk 0:00:02.7]} 36. a4 {[%clk
0:01:48.5]} 36... Bg2 {[%clk 0:00:02.2]} 37. a5 {[%clk 0:01:47.1]} 37... Bf3
{[%clk 0:00:01.8]} 38. Bf1 {[%clk 0:01:44.5]} 38... Bh1 {[%clk 0:00:01.5]} 39.
b5 {[%clk 0:01:43]} 39... axb5 {[%clk 0:00:01.7]} 40. cxb5 {[%clk 0:01:43.6]}
40... Nc5 {[%clk 0:00:01.7]} 41. Kb4 {[%clk 0:01:44]} 41... Ne4 {[%clk
0:00:01.6]} 42. Bc4 {[%clk 0:01:37.6]} 42... Nxg3 {[%clk 0:00:01.7]} 43. Bc5+
{[%clk 0:01:38.3]} 43... Kc7 {[%clk 0:00:01.7]} 44. Bd4 {[%clk 0:01:26.1]} 44...
Ne4 {[%clk 0:00:02.1]} 45. Be5+ {[%clk 0:01:26.7]} 45... Kc8 {[%clk 0:00:02.5]}
46. Be6+ {[%clk 0:01:23.4]} 46... Kd8 {[%clk 0:00:02.8]} 47. Bd5 {[%clk
0:01:24.3]} 47... Kc8 {[%clk 0:00:02.9]} 48. a6 {[%clk 0:01:20.1]} 48... bxa6
{[%clk 0:00:03]} 49. bxa6 {[%clk 0:01:21]} 49... Ng3 {[%clk 0:00:02.2]} 50. Be6+
{[%clk 0:01:21.3]} 50... Kd8 {[%clk 0:00:01.6]} 51. a7 {[%clk 0:01:21.9]} 51...
Ne2 {[%clk 0:00:01.4]} 52. Kc5 {[%clk 0:01:20.4]} 52... Ba8 {[%clk 0:00:01.9]}
53. Bd5 {[%clk 0:01:19.9]} 1-0

[Event "Late-Titled-Tuesday-Blitz-March-26-2024"]
[Site "Chess.com"]
[Date "2024.03.26"]
[Round "4"]
[White "ViIIagra"]
[Black "Oleksandr_Bortnyk"]
[Result "0-1"]
[WhiteElo "2878"]
[BlackElo "3056"]
[TimeControl "180+1"]
[EndTime "14:40:46 PDT"]
[Termination "Oleksandr_Bortnyk won on time"]

1. e4 {[%clk 0:03:00]} 1... Nf6 {[%clk 0:03:00.2]} 2. d3 {[%clk 0:02:59.9]} 2...
d5 {[%clk 0:02:59.1]} 3. e5 {[%clk 0:02:59]} 3... Nfd7 {[%clk 0:02:59.4]} 4. f4
{[%clk 0:02:59.3]} 4... c5 {[%clk 0:02:59.7]} 5. Nf3 {[%clk 0:02:59.6]} 5... Nc6
{[%clk 0:03:00.2]} 6. g3 {[%clk 0:03:00.1]} 6... e6 {[%clk 0:02:56.2]} 7. c3
{[%clk 0:02:57.4]} 7... f6 {[%clk 0:02:55.8]} 8. exf6 {[%clk 0:02:49]} 8... Qxf6
{[%clk 0:02:54.9]} 9. Bg2 {[%clk 0:02:47.8]} 9... Bd6 {[%clk 0:02:46]} 10. O-O
{[%clk 0:02:48.1]} 10... O-O {[%clk 0:02:45.4]} 11. c4 {[%clk 0:02:43.4]} 11...
Nb6 {[%clk 0:02:35.8]} 12. Nc3 {[%clk 0:02:42.3]} 12... Bd7 {[%clk 0:02:29.3]}
13. Kh1 {[%clk 0:02:34.2]} 13... Rae8 {[%clk 0:02:10.4]} 14. Bd2 {[%clk
0:02:27.4]} 14... Nd4 {[%clk 0:02:08.5]} 15. Ne5 {[%clk 0:01:58.6]} 15... Bxe5
{[%clk 0:01:44.6]} 16. fxe5 {[%clk 0:01:58.6]} 16... Qg6 {[%clk 0:01:45.3]} 17.
cxd5 {[%clk 0:01:40]} 17... exd5 {[%clk 0:01:33.3]} 18. Nxd5 {[%clk 0:01:25.5]}
18... Nxd5 {[%clk 0:01:20.7]} 19. Bxd5+ {[%clk 0:01:24.3]} 19... Kh8 {[%clk
0:01:18]} 20. Bf4 {[%clk 0:01:12.9]} 20... Bc6 {[%clk 0:01:12.5]} 21. Bg2 {[%clk
0:00:32.9]} 21... Bxg2+ {[%clk 0:01:07.2]} 22. Kxg2 {[%clk 0:00:33.8]} 22...
Qc6+ {[%clk 0:01:07.5]} 23. Kh3 {[%clk 0:00:33.8]} 23... Rf5 {[%clk 0:00:56]}
24. Qg4 {[%clk 0:00:20.9]} 24... Ref8 {[%clk 0:00:47.4]} 25. Rae1 {[%clk
0:00:10.1]} 25... g5 {[%clk 0:00:20.5]} 26. e6 {[%clk 0:00:09.6]} 26... gxf4
{[%clk 0:00:17.3]} 27. e7 {[%clk 0:00:08.7]} 27... Qh6+ {[%clk 0:00:11.5]} 28.
Kg2 {[%clk 0:00:06.3]} 28... f3+ {[%clk 0:00:11.2]} 29. Rxf3 {[%clk 0:00:03]}
29... Rxf3 {[%clk 0:00:12.1]} 30. exf8=Q+ {[%clk 0:00:03.3]} 30... Rxf8 {[%clk
0:00:11.2]} 31. Qd7 {[%clk 0:00:02.5]} 31... Qd2+ {[%clk 0:00:10.5]} 0-1

[Event "Late-Titled-Tuesday-Blitz-March-26-2024"]
[Site "Chess.com"]
[Date "2024.03.26"]
[Round "4"]
[White "Fh2411"]
[Black "Kavyev_Ruslan"]
[Result "1-0"]
[WhiteElo "2586"]
[BlackElo "2389"]
[TimeControl "180+1"]
[EndTime "14:40:46 PDT"]
[Termination "Fh2411 won on time"]

1. d4 {[%clk 0:03:00.9]} 1... c5 {[%clk 0:02:59.3]} 2. d5 {[%clk 0:02:49.1]}
2... e5 {[%clk 0:02:59]} 3. c4 {[%clk 0:02:45.9]} 3... d6 {[%clk 0:02:56.7]} 4.
g3 {[%clk 0:02:41]} 4... Be7 {[%clk 0:02:56.3]} 5. Nc3 {[%clk 0:02:41.4]} 5...
Bg5 {[%clk 0:02:56]} 6. e3 {[%clk 0:02:36.5]} 6... Ne7 {[%clk 0:02:53.3]} 7. h4
{[%clk 0:02:36.2]} 7... Bh6 {[%clk 0:02:52.9]} 8. Bh3 {[%clk 0:02:35]} 8... f5
{[%clk 0:02:50]} 9. Qh5+ {[%clk 0:02:31.1]} 9... Kf8 {[%clk 0:02:36.7]} 10. e4
{[%clk 0:02:11]} 10... Bxc1 {[%clk 0:02:30.6]} 11. Rxc1 {[%clk 0:02:10.4]} 11...
g6 {[%clk 0:02:21.9]} 12. Qh6+ {[%clk 0:02:09.3]} 12... Kg8 {[%clk 0:02:22.3]}
13. Nf3 {[%clk 0:01:57.7]} 13... a6 {[%clk 0:02:09]} 14. h5 {[%clk 0:01:37]}
14... Qf8 {[%clk 0:01:58.3]} 15. Qxf8+ {[%clk 0:01:29.3]} 15... Kxf8 {[%clk
0:01:58.3]} 16. Ng5 {[%clk 0:01:27.7]} 16... Ra7 {[%clk 0:01:01.6]} 17. f4
{[%clk 0:01:23.9]} 17... Nd7 {[%clk 0:00:52.1]} 18. Kd2 {[%clk 0:01:02.5]} 18...
b6 {[%clk 0:00:30.4]} 19. Rcf1 {[%clk 0:00:53.2]} 19... exf4 {[%clk 0:00:20]}
20. gxf4 {[%clk 0:00:48.4]} 20... Nf6 {[%clk 0:00:14.3]} 21. hxg6 {[%clk
0:00:45.1]} 21... hxg6 {[%clk 0:00:08.5]} 22. e5 {[%clk 0:00:45.5]} 22... dxe5
{[%clk 0:00:08.3]} 23. fxe5 {[%clk 0:00:45.6]} 23... Nh5 {[%clk 0:00:08.9]} 24.
d6 {[%clk 0:00:36.9]} 24... Nc6 {[%clk 0:00:06.8]} 25. e6 {[%clk 0:00:37.5]}
25... Nd4 {[%clk 0:00:03.7]} 26. e7+ {[%clk 0:00:26.7]} 26... Ke8 {[%clk
0:00:03.4]} 27. Bg2 {[%clk 0:00:23.1]} 27... Rg8 {[%clk 0:00:01.8]} 28. Bd5
{[%clk 0:00:22.2]} 28... Rg7 {[%clk 0:00:01.6]} 29. Re1 {[%clk 0:00:18]} 29...
Bd7 {[%clk 0:00:01]} 30. Ne2 {[%clk 0:00:16.4]} 1-0

[Event "Late-Titled-Tuesday-Blitz-March-26-2024"]
[Site "Chess.com"]
[Date "2024.03.26"]
[Round "4"]
[White "Agibileg"]
[Black "Nf3c5"]
[Result "1-0"]
[WhiteElo "2768"]
[BlackElo "2551"]
[TimeControl "180+1"]
[EndTime "14:40:47 PDT"]
[Termination "Agibileg won on time"]

1. d4 {[%clk 0:03:00.9]} 1... Nf6 {[%clk 0:02:58.9]} 2. c4 {[%clk 0:03:00.4]}
2... g6 {[%clk 0:02:59.3]} 3. Nc3 {[%clk 0:03:00.8]} 3... Bg7 {[%clk 0:02:59.9]}
4. e4 {[%clk 0:03:00.3]} 4... d6 {[%clk 0:03:00.5]} 5. Be2 {[%clk 0:03:00.8]}
5... Na6 {[%clk 0:02:53.5]} 6. Be3 {[%clk 0:03:00.6]} 6... O-O {[%clk
0:02:49.9]} 7. h4 {[%clk 0:02:47.2]} 7... c5 {[%clk 0:02:39.6]} 8. d5 {[%clk
0:02:46.7]} 8... e6 {[%clk 0:02:39.9]} 9. h5 {[%clk 0:02:46.6]} 9... exd5 {[%clk
0:02:40.5]} 10. exd5 {[%clk 0:02:45.3]} 10... Re8 {[%clk 0:02:40.7]} 11. hxg6
{[%clk 0:02:40.9]} 11... hxg6 {[%clk 0:02:24.1]} 12. Qd2 {[%clk 0:02:41.1]}
12... Ne4 {[%clk 0:02:17.8]} 13. Nxe4 {[%clk 0:02:36.4]} 13... Rxe4 {[%clk
0:02:18.7]} 14. Nf3 {[%clk 0:02:33.5]} 14... Qb6 {[%clk 0:02:10.1]} 15. Rb1
{[%clk 0:02:24.7]} 15... Bf5 {[%clk 0:02:06.9]} 16. Bd3 {[%clk 0:02:24.5]} 16...
Nb4 {[%clk 0:01:56.7]} 17. Bxe4 {[%clk 0:02:20.5]} 17... Bxe4 {[%clk 0:01:57.6]}
18. Rd1 {[%clk 0:02:13.2]} 18... Nd3+ {[%clk 0:01:53.7]} 19. Kf1 {[%clk
0:02:07.8]} 19... Nxb2 {[%clk 0:01:54.1]} 20. Bh6 {[%clk 0:02:01.7]} 20... Bh8
{[%clk 0:01:07.8]} 21. Bg5 {[%clk 0:01:59.5]} 21... Bg7 {[%clk 0:00:56.6]} 22.
Re1 {[%clk 0:01:52.4]} 22... Nxc4 {[%clk 0:00:51.4]} 23. Qf4 {[%clk 0:01:49.3]}
23... f5 {[%clk 0:00:23.3]} 24. Nh4 {[%clk 0:01:35.5]} 24... Ne5 {[%clk
0:00:19.3]} 25. Qg3 {[%clk 0:01:29.1]} 25... Qb5+ {[%clk 0:00:14.4]} 26. Kg1
{[%clk 0:01:28.8]} 26... Qb4 {[%clk 0:00:11.2]} 27. f3 {[%clk 0:01:26.9]} 27...
Nd3 {[%clk 0:00:10]} 28. Rd1 {[%clk 0:01:18.5]} 28... Qd4+ {[%clk 0:00:09.1]}
29. Kh2 {[%clk 0:01:17.6]} 29... Be5 {[%clk 0:00:09]} 30. f4 {[%clk 0:01:17.6]}
30... Bg7 {[%clk 0:00:09.2]} 31. Nxg6 {[%clk 0:01:17.2]} 31... Kf7 {[%clk
0:00:08.5]} 32. Nh4 {[%clk 0:01:15.5]} 32... Rh8 {[%clk 0:00:09]} 33. Rhe1
{[%clk 0:01:12.2]} 33... Bf6 {[%clk 0:00:07.6]} 34. Re3 {[%clk 0:01:01.2]} 34...
c4 {[%clk 0:00:05.3]} 35. Kg1 {[%clk 0:00:58.8]} 35... Rg8 {[%clk 0:00:03.8]}
36. Kh2 {[%clk 0:00:43.9]} 36... Bxg5 {[%clk 0:00:04.1]} 37. fxg5 {[%clk
0:00:43.7]} 37... f4 {[%clk 0:00:04.6]} 38. Qxf4+ {[%clk 0:00:40.4]} 38... Nxf4
{[%clk 0:00:02.9]} 39. Rxd4 {[%clk 0:00:41.3]} 1-0

[Event "Late-Titled-Tuesday-Blitz-March-26-2024"]
[Site "Chess.com"]
[Date "2024.03.26"]
[Round "4"]
[White "Mazetovic"]
[Black "Gravity_Chess"]
[Result "0-1"]
[WhiteElo "2604"]
[BlackElo "2838"]
[TimeControl "180+1"]
[EndTime "14:40:49 PDT"]
[Termination "Gravity_Chess won by resignation"]

1. e4 {[%clk 0:03:00.9]} 1... c5 {[%clk 0:02:59.8]} 2. Nf3 {[%clk 0:03:00.4]}
2... e6 {[%clk 0:03:00.5]} 3. c3 {[%clk 0:02:58.9]} 3... Nf6 {[%clk 0:03:00.6]}
4. d3 {[%clk 0:02:54.5]} 4... Nc6 {[%clk 0:02:59.2]} 5. Nbd2 {[%clk 0:02:53.8]}
5... d6 {[%clk 0:02:56]} 6. g3 {[%clk 0:02:52.6]} 6... g6 {[%clk 0:02:56.3]} 7.
Bg2 {[%clk 0:02:52.1]} 7... Bg7 {[%clk 0:02:56.9]} 8. O-O {[%clk 0:02:52.6]}
8... O-O {[%clk 0:02:57.5]} 9. Re1 {[%clk 0:02:53.1]} 9... e5 {[%clk 0:02:57.9]}
10. Nc4 {[%clk 0:02:49.4]} 10... h6 {[%clk 0:02:56.2]} 11. a4 {[%clk 0:02:48.8]}
11... Be6 {[%clk 0:02:56.2]} 12. Ne3 {[%clk 0:02:45.7]} 12... Re8 {[%clk
0:02:53.6]} 13. Nd2 {[%clk 0:02:42.5]} 13... d5 {[%clk 0:02:51.3]} 14. exd5
{[%clk 0:02:33.6]} 14... Nxd5 {[%clk 0:02:51.5]} 15. Nec4 {[%clk 0:02:31.7]}
15... Nb6 {[%clk 0:02:12]} 16. Qe2 {[%clk 0:02:17]} 16... Nxc4 {[%clk
0:01:59.4]} 17. dxc4 {[%clk 0:01:57.2]} 17... f5 {[%clk 0:01:59.1]} 18. Nf1
{[%clk 0:01:40.2]} 18... Kh7 {[%clk 0:01:55.9]} 19. Ne3 {[%clk 0:01:38.2]} 19...
e4 {[%clk 0:01:55.3]} 20. Rd1 {[%clk 0:01:34.7]} 20... Qe7 {[%clk 0:01:54.3]}
21. Nd5 {[%clk 0:01:35]} 21... Qf7 {[%clk 0:01:54.7]} 22. Bf4 {[%clk 0:01:24.3]}
22... Rad8 {[%clk 0:01:55]} 23. a5 {[%clk 0:00:59.7]} 23... Ne5 {[%clk
0:01:47.1]} 24. Bxe5 {[%clk 0:00:59.1]} 24... Bxe5 {[%clk 0:01:48]} 25. h4
{[%clk 0:00:52.1]} 25... Bxd5 {[%clk 0:01:24.5]} 26. cxd5 {[%clk 0:00:51.2]}
26... Bd6 {[%clk 0:01:24.9]} 27. a6 {[%clk 0:00:46.8]} 27... b6 {[%clk
0:01:23.9]} 28. Ra4 {[%clk 0:00:39.3]} 28... Kg7 {[%clk 0:01:20.8]} 29. b3
{[%clk 0:00:35.2]} 29... Qf6 {[%clk 0:01:18.9]} 30. Rc1 {[%clk 0:00:23.8]} 30...
Re7 {[%clk 0:01:13.5]} 31. b4 {[%clk 0:00:21.2]} 31... Rf8 {[%clk 0:01:10.3]}
32. b5 {[%clk 0:00:20.4]} 32... f4 {[%clk 0:01:04]} 33. Rxe4 {[%clk 0:00:17.7]}
33... Rxe4 {[%clk 0:00:46.7]} 34. Qxe4 {[%clk 0:00:17.4]} 34... fxg3 {[%clk
0:00:47]} 35. fxg3 {[%clk 0:00:17.8]} 35... Bxg3 {[%clk 0:00:46.6]} 36. Rf1
{[%clk 0:00:17.3]} 36... Bf2+ {[%clk 0:00:41.8]} 37. Kh1 {[%clk 0:00:16.8]}
37... Qxh4+ {[%clk 0:00:37.8]} 38. Qxh4 {[%clk 0:00:16]} 38... Bxh4 {[%clk
0:00:38.7]} 39. Rxf8 {[%clk 0:00:13.8]} 39... Kxf8 {[%clk 0:00:39.6]} 40. Be4
{[%clk 0:00:13.8]} 40... Kf7 {[%clk 0:00:35.8]} 41. c4 {[%clk 0:00:14]} 41...
Bg3 {[%clk 0:00:35.7]} 42. Kg2 {[%clk 0:00:14.4]} 42... Bd6 {[%clk 0:00:36.3]}
43. Kf3 {[%clk 0:00:14.8]} 43... Kf6 {[%clk 0:00:37]} 44. Kg4 {[%clk 0:00:15.2]}
44... h5+ {[%clk 0:00:37.4]} 45. Kf3 {[%clk 0:00:14.9]} 45... g5 {[%clk
0:00:36.9]} 46. Bh7 {[%clk 0:00:15.1]} 46... g4+ {[%clk 0:00:37]} 47. Ke4 {[%clk
0:00:15.5]} 47... Kg5 {[%clk 0:00:37]} 48. Bf5 {[%clk 0:00:15.8]} 48... h4
{[%clk 0:00:37.2]} 49. Bd7 {[%clk 0:00:15.7]} 49... h3 {[%clk 0:00:37.5]} 50.
Ke3 {[%clk 0:00:15.4]} 50... h2 {[%clk 0:00:37.6]} 0-1

[Event "Late-Titled-Tuesday-Blitz-March-26-2024"]
[Site "Chess.com"]
[Date "2024.03.26"]
[Round "4"]
[White "N_I_Chess"]
[Black "a_kandil"]
[Result "0-1"]
[WhiteElo "2319"]
[BlackElo "2513"]
[TimeControl "180+1"]
[EndTime "14:40:49 PDT"]
[Termination "a_kandil won on time"]

1. d4 {[%clk 0:02:29.9]} 1... Nf6 {[%clk 0:03:00]} 2. c4 {[%clk 0:02:28.4]} 2...
g6 {[%clk 0:02:59.9]} 3. Nc3 {[%clk 0:02:27.9]} 3... d5 {[%clk 0:03:00]} 4. cxd5
{[%clk 0:02:27.7]} 4... Nxd5 {[%clk 0:03:00.9]} 5. Bd2 {[%clk 0:02:28.6]} 5...
Bg7 {[%clk 0:03:00.4]} 6. e4 {[%clk 0:02:28.6]} 6... Nb6 {[%clk 0:02:58.1]} 7.
Be3 {[%clk 0:02:28.5]} 7... O-O {[%clk 0:02:56.8]} 8. Nf3 {[%clk 0:02:24.6]}
8... Nc6 {[%clk 0:02:56.6]} 9. d5 {[%clk 0:02:23.5]} 9... Na5 {[%clk 0:02:51.2]}
10. Be2 {[%clk 0:02:21.5]} 10... Bg4 {[%clk 0:02:40.4]} 11. Bd4 {[%clk
0:02:12.9]} 11... Bxf3 {[%clk 0:02:36.7]} 12. gxf3 {[%clk 0:02:07.5]} 12... Bxd4
{[%clk 0:01:32.5]} 13. Qxd4 {[%clk 0:02:08.4]} 13... Qd6 {[%clk 0:01:33]} 14. e5
{[%clk 0:01:59.2]} 14... c5 {[%clk 0:01:20.7]} 15. Qe3 {[%clk 0:01:34.7]} 15...
Qc7 {[%clk 0:01:20.7]} 16. h4 {[%clk 0:01:32.6]} 16... Nac4 {[%clk 0:01:17.7]}
17. Qh6 {[%clk 0:01:18.9]} 17... Qxe5 {[%clk 0:01:16.3]} 18. h5 {[%clk
0:01:15.6]} 18... Nxb2 {[%clk 0:00:48.2]} 19. Kd2 {[%clk 0:00:09.2]} 19... N2c4+
{[%clk 0:00:47.9]} 20. Kc2 {[%clk 0:00:07.1]} 20... Nxd5 {[%clk 0:00:26.8]} 21.
Nxd5 {[%clk 0:00:03.8]} 21... Qxe2+ {[%clk 0:00:19.9]} 22. Kc3 {[%clk
0:00:03.9]} 22... Qb2+ {[%clk 0:00:16.7]} 23. Kxc4 {[%clk 0:00:02.4]} 23... Qd4+
{[%clk 0:00:16.7]} 24. Kb3 {[%clk 0:00:01.3]} 24... Qxd5+ {[%clk 0:00:17]} 25.
Kc2 {[%clk 0:00:02]} 25... Qc4+ {[%clk 0:00:17.2]} 26. Kb2 {[%clk 0:00:01.7]}
26... Qd4+ {[%clk 0:00:17.5]} 27. Kc2 {[%clk 0:00:01.9]} 27... Qg7 {[%clk
0:00:16]} 0-1

[Event "Late-Titled-Tuesday-Blitz-March-26-2024"]
[Site "Chess.com"]
[Date "2024.03.26"]
[Round "4"]
[White "expii"]
[Black "kinga2008"]
[Result "0-1"]
[WhiteElo "2196"]
[BlackElo "2449"]
[TimeControl "180+1"]
[EndTime "14:40:49 PDT"]
[Termination "kinga2008 won by checkmate"]

1. e4 {[%clk 0:03:00.9]} 1... c5 {[%clk 0:02:37.5]} 2. Nf3 {[%clk 0:02:58.9]}
2... Nc6 {[%clk 0:02:24.8]} 3. d4 {[%clk 0:02:59.8]} 3... cxd4 {[%clk
0:02:12.2]} 4. Nxd4 {[%clk 0:03:00.4]} 4... e5 {[%clk 0:02:07.7]} 5. Ne2 {[%clk
0:02:57.1]} 5... Nf6 {[%clk 0:02:02.8]} 6. Nbc3 {[%clk 0:02:57.5]} 6... a6
{[%clk 0:02:01.6]} 7. g3 {[%clk 0:02:55.7]} 7... b5 {[%clk 0:02:01.6]} 8. a3
{[%clk 0:02:38.6]} 8... Bb7 {[%clk 0:01:45.6]} 9. Bg2 {[%clk 0:02:35.9]} 9...
Be7 {[%clk 0:01:26.3]} 10. O-O {[%clk 0:02:33.7]} 10... O-O {[%clk 0:01:23.6]}
11. h3 {[%clk 0:02:29.3]} 11... Rc8 {[%clk 0:01:14]} 12. Be3 {[%clk 0:02:23.3]}
12... Na5 {[%clk 0:01:08.6]} 13. g4 {[%clk 0:02:13.1]} 13... Nc4 {[%clk
0:01:07.7]} 14. Bc1 {[%clk 0:01:58.6]} 14... Nb6 {[%clk 0:00:58.5]} 15. Kh1
{[%clk 0:01:54.4]} 15... d5 {[%clk 0:00:58]} 16. exd5 {[%clk 0:01:52.7]} 16...
Nfxd5 {[%clk 0:00:57.4]} 17. Nxd5 {[%clk 0:01:51]} 17... Nxd5 {[%clk 0:00:58.3]}
18. Ng3 {[%clk 0:01:42.9]} 18... Qd7 {[%clk 0:00:46.6]} 19. c3 {[%clk
0:01:31.5]} 19... Rfd8 {[%clk 0:00:45.8]} 20. Be3 {[%clk 0:01:21.8]} 20... Nxe3
{[%clk 0:00:33.3]} 21. fxe3 {[%clk 0:01:22.7]} 21... Bxg2+ {[%clk 0:00:27.6]}
22. Kxg2 {[%clk 0:01:11.8]} 22... Qe6 {[%clk 0:00:24.6]} 23. Qf3 {[%clk
0:01:11.4]} 23... Rd2+ {[%clk 0:00:19.4]} 24. Rf2 {[%clk 0:01:00]} 24... Rcd8
{[%clk 0:00:18.7]} 25. Rf1 {[%clk 0:00:56.3]} 25... Bh4 {[%clk 0:00:13.1]} 26.
Rxd2 {[%clk 0:00:48.4]} 26... Rxd2+ {[%clk 0:00:12.6]} 27. Rf2 {[%clk
0:00:49.3]} 27... Rxf2+ {[%clk 0:00:11.6]} 28. Qxf2 {[%clk 0:00:50.2]} 28...
Qd5+ {[%clk 0:00:10]} 29. Qf3 {[%clk 0:00:48.4]} 29... Qd2+ {[%clk 0:00:09.4]}
30. Ne2 {[%clk 0:00:46.7]} 30... g6 {[%clk 0:00:06.5]} 31. Qa8+ {[%clk
0:00:38.2]} 31... Kg7 {[%clk 0:00:06.6]} 32. Kf3 {[%clk 0:00:37.5]} 32... Qd1
{[%clk 0:00:04.8]} 33. e4 {[%clk 0:00:24]} 33... Qd3+ {[%clk 0:00:03.4]} 34. Kg2
{[%clk 0:00:24.3]} 34... Qxe2+ {[%clk 0:00:04.3]} 35. Kg1 {[%clk 0:00:25]} 35...
Qf2+ {[%clk 0:00:03]} 36. Kh1 {[%clk 0:00:25.2]} 36... Bg3 {[%clk 0:00:03.6]}
37. Qg8+ {[%clk 0:00:24.2]} 37... Kxg8 {[%clk 0:00:02.1]} 38. h4 {[%clk
0:00:25.1]} 38... Qf1# {[%clk 0:00:01.9]} 0-1